[Event "Titled Tuesday Blitz January 03 Late 2023"]
[White "Alikhanov, Felix"]
[Black "Schmidt, Harald"]
[WhiteFideId "4157427"]
[BlackFideId "4648358"]
[WhiteElo "2434"]
[BlackElo "2347"]
[Result "1-0"]
[Round "06"]
[TimeControl "180+2"]
[Date "2023.01.03"]
[WhiteClock "0:00:13"]
[BlackClock "0:00:01"]

1. e4 {[%clk 0:02:56]}  d6 {[%clk 0:02:58]} 2. d4 {[%clk 0:02:57]}  g6 {[%clk 0:02:58]} 3. Nc3 {[%clk 0:02:57]}  Bg7 {[%clk 0:02:57]} 4. h4 {[%clk 0:02:57]}  h5 {[%clk 0:02:56]} 5. Nh3 {[%clk 0:02:57]}  Bxh3 {[%clk 0:02:54]} 6. Rxh3 {[%clk 0:02:57]}  Nd7 {[%clk 0:02:54]} 7. Be3 {[%clk 0:02:57]}  c5 {[%clk 0:02:53]} 8. Qd2 {[%clk 0:02:56]}  cxd4 {[%clk 0:02:52]} 9. Bxd4 {[%clk 0:02:56]}  Ngf6 {[%clk 0:02:50]} 10. O-O-O {[%clk 0:02:50]}  a6 {[%clk 0:02:50]} 11. Kb1 {[%clk 0:02:49]}  b5 {[%clk 0:02:48]} 12. f3 {[%clk 0:02:46]}  Rc8 {[%clk 0:02:42]} 13. Rh1 {[%clk 0:02:43]}  Nb6 {[%clk 0:02:35]} 14. g4 {[%clk 0:02:34]}  hxg4 {[%clk 0:02:27]} 15. h5 {[%clk 0:02:29]}  Rxh5 {[%clk 0:02:13]} 16. Rxh5 {[%clk 0:02:27]}  Nxh5 {[%clk 0:01:59]} 17. Bxg7 {[%clk 0:02:26]}  Nxg7 {[%clk 0:01:58]} 18. Qh6 {[%clk 0:02:22]}  Ne6 {[%clk 0:01:51]} 19. Nxb5 {[%clk 0:02:20]}  axb5 {[%clk 0:01:45]} 20. Bxb5+ {[%clk 0:02:17]}  Nd7 {[%clk 0:01:44]} 21. e5 {[%clk 0:02:09]}  Qb6 {[%clk 0:01:34]} 22. Qh8+ {[%clk 0:02:04]}  Nf8 {[%clk 0:01:33]} 23. Bxd7+ {[%clk 0:02:00]}  Kxd7 {[%clk 0:01:32]} 24. exd6 {[%clk 0:02:00]}  exd6 {[%clk 0:01:24]} 25. Qf6 {[%clk 0:01:58]}  Ke8 {[%clk 0:01:11]} 26. fxg4 {[%clk 0:01:55]}  Qc5 {[%clk 0:01:00]} 27. c3 {[%clk 0:01:46]}  Ne6 {[%clk 0:00:59]} 28. Rf1 {[%clk 0:01:30]}  Rc7 {[%clk 0:00:48]} 29. Qh8+ {[%clk 0:01:27]}  Nf8 {[%clk 0:00:47]} 30. Re1+ {[%clk 0:01:25]}  Re7 {[%clk 0:00:47]} 31. Rd1 {[%clk 0:01:14]}  Qe5 {[%clk 0:00:44]} 32. Qh3 {[%clk 0:01:02]}  Ne6 {[%clk 0:00:33]} 33. Qf3 {[%clk 0:00:57]}  Nc5 {[%clk 0:00:30]} 34. Qa8+ {[%clk 0:00:57]}  Kd7 {[%clk 0:00:29]} 35. Qa7+ {[%clk 0:00:33]}  Ke6 {[%clk 0:00:28]} 36. Qb8 {[%clk 0:00:22]}  Qe4+ {[%clk 0:00:19]} 37. Ka1 {[%clk 0:00:21]}  Qe5 {[%clk 0:00:08]} 38. Qb6 {[%clk 0:00:16]}  Rb7 {[%clk 0:00:05]} 39. Qd8 {[%clk 0:00:13]}  Nb3+ {[%clk 0:00:01]} 40. axb3 {[%clk 0:00:13]} 1-0


[Site "https://www.chess.com"]

[Event "Titled Tuesday Blitz January 03 Late 2023"]
[White "Sebag, Marie"]
[Black "La Villa Rivas, Marlon Javier"]
[WhiteFideId "617822"]
[BlackFideId "3519546"]
[WhiteElo "2430"]
[BlackElo "2246"]
[Result "1-0"]
[Round "06"]
[TimeControl "180+2"]
[Date "2023.01.03"]
[WhiteClock "0:00:29"]
[BlackClock "0:01:22"]

1. e4 {[%clk 0:02:58]}  c5 {[%clk 0:02:59]} 2. Nf3 {[%clk 0:02:58]}  d6 {[%clk 0:02:58]} 3. d4 {[%clk 0:02:56]}  cxd4 {[%clk 0:02:59]} 4. Nxd4 {[%clk 0:02:56]}  Nf6 {[%clk 0:03:00]} 5. Nc3 {[%clk 0:02:57]}  Nc6 {[%clk 0:03:01]} 6. Bg5 {[%clk 0:02:54]}  e6 {[%clk 0:03:00]} 7. Qd2 {[%clk 0:02:54]}  Bd7 {[%clk 0:03:00]} 8. O-O-O {[%clk 0:02:54]}  a6 {[%clk 0:03:00]} 9. Kb1 {[%clk 0:02:52]}  Be7 {[%clk 0:02:50]} 10. f3 {[%clk 0:02:50]}  b5 {[%clk 0:02:49]} 11. Nxc6 {[%clk 0:02:49]}  Bxc6 {[%clk 0:02:49]} 12. Bd3 {[%clk 0:02:49]}  Rc8 {[%clk 0:02:48]} 13. h4 {[%clk 0:02:48]}  Qb6 {[%clk 0:02:47]} 14. Ne2 {[%clk 0:02:48]}  d5 {[%clk 0:02:45]} 15. e5 {[%clk 0:02:47]}  Nd7 {[%clk 0:02:43]} 16. Bxe7 {[%clk 0:02:44]}  Kxe7 {[%clk 0:02:44]} 17. Qg5+ {[%clk 0:02:42]}  Kf8 {[%clk 0:02:44]} 18. f4 {[%clk 0:02:42]}  h6 {[%clk 0:02:37]} 19. Qg3 {[%clk 0:02:41]}  b4 {[%clk 0:02:35]} 20. f5 {[%clk 0:02:41]}  Bb5 {[%clk 0:02:34]} 21. fxe6 {[%clk 0:02:39]}  Bxd3 {[%clk 0:02:28]} 22. Rxd3 {[%clk 0:01:55]}  Qxe6 {[%clk 0:02:24]} 23. Re3 {[%clk 0:01:45]}  d4 {[%clk 0:02:05]} 24. Nxd4 {[%clk 0:01:33]}  Qc4 {[%clk 0:02:05]} 25. Rd1 {[%clk 0:01:18]}  Nc5 {[%clk 0:02:01]} 26. b3 {[%clk 0:01:05]}  Qd5 {[%clk 0:01:54]} 27. e6 {[%clk 0:01:01]}  Ne4 {[%clk 0:01:45]} 28. Qf3 {[%clk 0:00:55]}  Nf6 {[%clk 0:01:28]} 29. e7+ {[%clk 0:00:33]}  Ke8 {[%clk 0:01:26]} 30. Nf5 {[%clk 0:00:29]}  Qxf3 {[%clk 0:01:22]} 31. Nxg7# {[%clk 0:00:29]} 1-0


[Site "https://www.chess.com"]

[Event "Titled Tuesday Blitz January 03 Late 2023"]
[White "Pakleza, Zbigniew"]
[Black "Gurevich, Dmitry"]
[WhiteFideId "1119290"]
[BlackFideId "2000407"]
[WhiteElo "2494"]
[BlackElo "2393"]
[Result "1-0"]
[Round "06"]
[TimeControl "180+2"]
[Date "2023.01.03"]
[WhiteClock "0:00:03"]
[BlackClock "0:00:01"]

1. d4 {[%clk 0:03:00]}  d5 {[%clk 0:02:58]} 2. Bf4 {[%clk 0:03:00]}  Nf6 {[%clk 0:02:56]} 3. e3 {[%clk 0:03:00]}  c5 {[%clk 0:02:55]} 4. c3 {[%clk 0:03:00]}  Nc6 {[%clk 0:02:52]} 5. Nd2 {[%clk 0:03:00]}  Bf5 {[%clk 0:02:48]} 6. Ngf3 {[%clk 0:02:57]}  e6 {[%clk 0:02:47]} 7. Bb5 {[%clk 0:02:55]}  Bd6 {[%clk 0:02:40]} 8. Bxc6+ {[%clk 0:02:39]}  bxc6 {[%clk 0:02:39]} 9. Qa4 {[%clk 0:02:40]}  O-O {[%clk 0:02:36]} 10. Qxc6 {[%clk 0:02:29]}  Bxf4 {[%clk 0:02:35]} 11. exf4 {[%clk 0:02:30]}  Qb8 {[%clk 0:02:28]} 12. Qxc5 {[%clk 0:01:42]}  Qxb2 {[%clk 0:02:16]} 13. O-O {[%clk 0:01:41]}  Rfc8 {[%clk 0:02:10]} 14. Qb4 {[%clk 0:01:38]}  Qxc3 {[%clk 0:02:07]} 15. Qxc3 {[%clk 0:01:33]}  Rxc3 {[%clk 0:02:06]} 16. Rfc1 {[%clk 0:01:25]}  Rac8 {[%clk 0:02:04]} 17. Nb3 {[%clk 0:01:25]}  Ne4 {[%clk 0:01:54]} 18. Rxc3 {[%clk 0:00:51]}  Nxc3 {[%clk 0:01:53]} 19. Kf1 {[%clk 0:00:48]}  Bc2 {[%clk 0:01:44]} 20. Ke1 {[%clk 0:00:43]}  Nxa2 {[%clk 0:01:24]} 21. Rxa2 {[%clk 0:00:44]}  Bxb3 {[%clk 0:01:23]} 22. Rxa7 {[%clk 0:00:45]}  f6 {[%clk 0:01:21]} 23. Kd2 {[%clk 0:00:26]}  Rc2+ {[%clk 0:01:18]} 24. Ke3 {[%clk 0:00:26]}  Bc4 {[%clk 0:01:17]} 25. f5 {[%clk 0:00:11]}  exf5 {[%clk 0:01:10]} 26. h4 {[%clk 0:00:11]}  h5 {[%clk 0:01:08]} 27. g3 {[%clk 0:00:06]}  Kh7 {[%clk 0:01:03]} 28. Nd2 {[%clk 0:00:05]}  Rc3+ {[%clk 0:00:57]} 29. Kf4 {[%clk 0:00:05]}  Rd3 {[%clk 0:00:42]} 30. Nf3 {[%clk 0:00:06]}  Kg6 {[%clk 0:00:38]} 31. Rc7 {[%clk 0:00:05]}  Ra3 {[%clk 0:00:21]} 32. Rc6 {[%clk 0:00:05]}  Ra2 {[%clk 0:00:19]} 33. Ne5+ {[%clk 0:00:04]}  Kh6 {[%clk 0:00:12]} 34. Nxc4 {[%clk 0:00:05]}  dxc4 {[%clk 0:00:11]} 35. Ke3 {[%clk 0:00:06]}  Ra3+ {[%clk 0:00:09]} 36. Ke2 {[%clk 0:00:05]}  c3 {[%clk 0:00:07]} 37. Ke3 {[%clk 0:00:06]}  c2+ {[%clk 0:00:06]} 38. Ke2 {[%clk 0:00:03]}  Ra2 {[%clk 0:00:05]} 39. Kd3 {[%clk 0:00:03]}  c1=Q {[%clk 0:00:05]} 40. Rxc1 {[%clk 0:00:04]}  Rxf2 {[%clk 0:00:04]} 41. d5 {[%clk 0:00:05]}  Kg6 {[%clk 0:00:03]} 42. Rc7 {[%clk 0:00:03]}  Rf3+ {[%clk 0:00:02]} 43. Kc4 {[%clk 0:00:02]}  Rxg3 {[%clk 0:00:01]} 44. d6 {[%clk 0:00:03]}  Rg1 {[%clk 0:00:01]} 45. Rc5 {[%clk 0:00:03]} 1-0


[Site "https://www.chess.com"]

[Event "Titled Tuesday Blitz January 03 Late 2023"]
[White "Winterberg, Lukas"]
[Black "Kosteniuk, Alexandra"]
[WhiteFideId "24622702"]
[BlackFideId "4128125"]
[WhiteElo "2402"]
[BlackElo "2535"]
[Result "0-1"]
[Round "06"]
[TimeControl "180+2"]
[Date "2023.01.03"]
[WhiteClock "0:00:05"]
[BlackClock "0:00:17"]

1. d4 {[%clk 0:02:56]}  f5 {[%clk 0:02:59]} 2. Nf3 {[%clk 0:02:56]}  Nf6 {[%clk 0:02:59]} 3. g3 {[%clk 0:02:57]}  g6 {[%clk 0:03:00]} 4. Bg2 {[%clk 0:02:58]}  Bg7 {[%clk 0:03:00]} 5. O-O {[%clk 0:02:59]}  O-O {[%clk 0:03:00]} 6. Nbd2 {[%clk 0:02:59]}  d5 {[%clk 0:03:00]} 7. c4 {[%clk 0:02:59]}  e6 {[%clk 0:02:59]} 8. Qc2 {[%clk 0:02:58]}  Ne4 {[%clk 0:02:57]} 9. e3 {[%clk 0:02:55]}  Nc6 {[%clk 0:02:48]} 10. a3 {[%clk 0:02:51]}  a5 {[%clk 0:02:46]} 11. b3 {[%clk 0:02:50]}  Ne7 {[%clk 0:02:41]} 12. Ne1 {[%clk 0:02:41]}  c6 {[%clk 0:02:40]} 13. Nd3 {[%clk 0:02:12]}  b6 {[%clk 0:02:30]} 14. Bb2 {[%clk 0:02:05]}  Ba6 {[%clk 0:02:26]} 15. Rfc1 {[%clk 0:02:03]}  Rc8 {[%clk 0:02:25]} 16. Nf4 {[%clk 0:01:54]}  Qd7 {[%clk 0:02:22]} 17. Nxe4 {[%clk 0:01:37]}  fxe4 {[%clk 0:02:20]} 18. Bh3 {[%clk 0:01:35]}  Nf5 {[%clk 0:02:18]} 19. Qd2 {[%clk 0:01:33]}  a4 {[%clk 0:02:12]} 20. cxd5 {[%clk 0:01:30]}  exd5 {[%clk 0:02:06]} 21. Qb4 {[%clk 0:01:29]}  axb3 {[%clk 0:01:58]} 22. Qxb6 {[%clk 0:01:27]}  Bc4 {[%clk 0:01:57]} 23. Qc5 {[%clk 0:01:17]}  Rb8 {[%clk 0:01:50]} 24. a4 {[%clk 0:01:16]}  Rf7 {[%clk 0:01:45]} 25. Qa5 {[%clk 0:01:13]}  Bf8 {[%clk 0:01:40]} 26. Qe1 {[%clk 0:01:07]}  Bb4 {[%clk 0:01:39]} 27. Qd1 {[%clk 0:01:06]}  Bd6 {[%clk 0:01:34]} 28. a5 {[%clk 0:01:04]}  Ra8 {[%clk 0:01:17]} 29. Qd2 {[%clk 0:01:01]}  Qe7 {[%clk 0:01:13]} 30. Bc3 {[%clk 0:00:58]}  Ng7 {[%clk 0:01:03]} 31. Ra4 {[%clk 0:00:55]}  g5 {[%clk 0:01:01]} 32. Ne2 {[%clk 0:00:51]}  Bb5 {[%clk 0:01:01]} 33. Raa1 {[%clk 0:00:50]}  h5 {[%clk 0:01:01]} 34. Rab1 {[%clk 0:00:43]}  Bc4 {[%clk 0:00:59]} 35. Bb2 {[%clk 0:00:29]}  Qf6 {[%clk 0:00:56]} 36. Rf1 {[%clk 0:00:28]}  g4 {[%clk 0:00:52]} 37. Bg2 {[%clk 0:00:28]}  Ne6 {[%clk 0:00:52]} 38. Nf4 {[%clk 0:00:28]}  Nxf4 {[%clk 0:00:49]} 39. exf4 {[%clk 0:00:29]}  Bxf1 {[%clk 0:00:46]} 40. Bxf1 {[%clk 0:00:30]}  Rfa7 {[%clk 0:00:43]} 41. Rc1 {[%clk 0:00:29]}  Bf8 {[%clk 0:00:38]} 42. Qc3 {[%clk 0:00:27]}  Rxa5 {[%clk 0:00:35]} 43. Qxb3 {[%clk 0:00:25]}  Qd6 {[%clk 0:00:28]} 44. Qc3 {[%clk 0:00:23]}  Ra2 {[%clk 0:00:28]} 45. h3 {[%clk 0:00:17]}  Rb8 {[%clk 0:00:28]} 46. Ba1 {[%clk 0:00:17]}  Rb6 {[%clk 0:00:27]} 47. hxg4 {[%clk 0:00:16]}  hxg4 {[%clk 0:00:28]} 48. Rc2 {[%clk 0:00:15]}  Rxc2 {[%clk 0:00:27]} 49. Qxc2 {[%clk 0:00:16]}  Qa3 {[%clk 0:00:26]} 50. Bc3 {[%clk 0:00:12]}  Qb3 {[%clk 0:00:26]} 51. Qd2 {[%clk 0:00:10]}  Bb4 {[%clk 0:00:25]} 52. Bxb4 {[%clk 0:00:10]}  Rxb4 {[%clk 0:00:24]} 53. Be2 {[%clk 0:00:07]}  Qb1+ {[%clk 0:00:21]} 54. Kg2 {[%clk 0:00:07]}  Qb2 {[%clk 0:00:20]} 55. Qxb2 {[%clk 0:00:07]}  Rxb2 {[%clk 0:00:20]} 56. Bxg4 {[%clk 0:00:08]}  Rd2 {[%clk 0:00:19]} 57. Bd7 {[%clk 0:00:08]}  Rxd4 {[%clk 0:00:18]} 58. Bxc6 {[%clk 0:00:08]}  Rd2 {[%clk 0:00:18]} 59. g4 {[%clk 0:00:07]}  e3 {[%clk 0:00:18]} 60. f5 {[%clk 0:00:05]}  e2 {[%clk 0:00:17]} 0-1


[Site "https://www.chess.com"]

[Event "Titled Tuesday Blitz January 03 Late 2023"]
[White "Dimitrov, Atanas"]
[Black "Senthil, Maran K"]
[WhiteFideId "2901315"]
[BlackFideId "25035681"]
[WhiteElo "2269"]
[BlackElo "2209"]
[Result "1-0"]
[Round "06"]
[TimeControl "180+2"]
[Date "2023.01.03"]
[WhiteClock "0:00:06"]
[BlackClock "0:00:02"]

1. Nf3 {[%clk 0:03:00]}  c5 {[%clk 0:02:58]} 2. c4 {[%clk 0:03:01]}  g6 {[%clk 0:02:59]} 3. Nc3 {[%clk 0:03:01]}  Nc6 {[%clk 0:02:58]} 4. e3 {[%clk 0:03:02]}  Nf6 {[%clk 0:02:57]} 5. b3 {[%clk 0:03:03]}  Bg7 {[%clk 0:02:56]} 6. Bb2 {[%clk 0:03:03]}  O-O {[%clk 0:02:57]} 7. Be2 {[%clk 0:03:04]}  d5 {[%clk 0:02:57]} 8. cxd5 {[%clk 0:03:04]}  Nxd5 {[%clk 0:02:57]} 9. Rc1 {[%clk 0:03:05]}  Ndb4 {[%clk 0:02:55]} 10. O-O {[%clk 0:03:04]}  Bf5 {[%clk 0:02:55]} 11. Ne1 {[%clk 0:02:58]}  Nd3 {[%clk 0:02:53]} 12. Nxd3 {[%clk 0:02:56]}  Bxd3 {[%clk 0:02:53]} 13. Bxd3 {[%clk 0:02:57]}  Qxd3 {[%clk 0:02:54]} 14. Na4 {[%clk 0:02:58]}  b6 {[%clk 0:02:48]} 15. Bxg7 {[%clk 0:02:57]}  Kxg7 {[%clk 0:02:49]} 16. Nb2 {[%clk 0:02:57]}  Qd5 {[%clk 0:02:46]} 17. Qe2 {[%clk 0:02:35]}  Rfd8 {[%clk 0:02:44]} 18. Rfd1 {[%clk 0:02:36]}  Rac8 {[%clk 0:02:41]} 19. Rc3 {[%clk 0:02:30]}  e5 {[%clk 0:02:18]} 20. a3 {[%clk 0:02:23]}  e4 {[%clk 0:02:16]} 21. h3 {[%clk 0:02:20]}  Ne5 {[%clk 0:02:16]} 22. Qa6 {[%clk 0:02:08]}  Rc7 {[%clk 0:01:54]} 23. a4 {[%clk 0:02:07]}  Nc6 {[%clk 0:01:35]} 24. Qb5 {[%clk 0:01:52]}  Rcd7 {[%clk 0:01:24]} 25. d3 {[%clk 0:01:39]}  exd3 {[%clk 0:01:05]} 26. Rcxd3 {[%clk 0:01:34]}  Qe6 {[%clk 0:01:03]} 27. Rxd7 {[%clk 0:01:24]}  Rxd7 {[%clk 0:01:04]} 28. Rxd7 {[%clk 0:01:15]}  Qxd7 {[%clk 0:01:05]} 29. a5 {[%clk 0:01:10]}  Qc7 {[%clk 0:00:38]} 30. axb6 {[%clk 0:01:09]}  Qxb6 {[%clk 0:00:39]} 31. Qc4 {[%clk 0:01:07]}  Qb4 {[%clk 0:00:35]} 32. Qc2 {[%clk 0:01:05]}  Na5 {[%clk 0:00:33]} 33. Nd3 {[%clk 0:00:36]}  Qxb3 {[%clk 0:00:33]} 34. Qxc5 {[%clk 0:00:34]}  Qxd3 {[%clk 0:00:19]} 35. Qe5+ {[%clk 0:00:33]}  Kg8 {[%clk 0:00:17]} 36. Qxa5 {[%clk 0:00:33]}  a6 {[%clk 0:00:16]} 37. h4 {[%clk 0:00:30]}  h5 {[%clk 0:00:15]} 38. g3 {[%clk 0:00:29]}  Qd1+ {[%clk 0:00:13]} 39. Kh2 {[%clk 0:00:28]}  Qe2 {[%clk 0:00:12]} 40. Kg2 {[%clk 0:00:26]}  Qb5 {[%clk 0:00:11]} 41. Qd8+ {[%clk 0:00:27]}  Kg7 {[%clk 0:00:11]} 42. Qd4+ {[%clk 0:00:27]}  Kf8 {[%clk 0:00:11]} 43. e4 {[%clk 0:00:21]}  Ke7 {[%clk 0:00:11]} 44. Qa7+ {[%clk 0:00:16]}  Ke6 {[%clk 0:00:11]} 45. Qa8 {[%clk 0:00:15]}  a5 {[%clk 0:00:11]} 46. Qc8+ {[%clk 0:00:15]}  Kd6 {[%clk 0:00:11]} 47. Qf8+ {[%clk 0:00:13]}  Ke6 {[%clk 0:00:10]} 48. Qc8+ {[%clk 0:00:12]}  Kf6 {[%clk 0:00:06]} 49. Qc3+ {[%clk 0:00:11]}  Qe5 {[%clk 0:00:06]} 50. Qc6+ {[%clk 0:00:09]}  Kg7 {[%clk 0:00:05]} 51. f4 {[%clk 0:00:08]}  Qb2+ {[%clk 0:00:05]} 52. Kh3 {[%clk 0:00:08]}  Qb4 {[%clk 0:00:03]} 53. e5 {[%clk 0:00:07]}  Qb3 {[%clk 0:00:02]} 54. Qf6+ {[%clk 0:00:06]}  Kg8 {[%clk 0:00:03]} 55. Qd8+ {[%clk 0:00:07]}  Kh7 {[%clk 0:00:03]} 56. Qxa5 {[%clk 0:00:07]}  Qf3 {[%clk 0:00:02]} 57. Qe1 {[%clk 0:00:06]} 1-0


[Site "https://www.chess.com"]

[Event "Titled Tuesday Blitz January 03 Late 2023"]
[White "Levitskiy, Andrey"]
[Black "Fishbein, Mitch"]
[WhiteFideId "14132885"]
[BlackFideId "30922917"]
[WhiteElo "2304"]
[BlackElo "2120"]
[Result "1/2-1/2"]
[Round "06"]
[TimeControl "180+2"]
[Date "2023.01.03"]
[WhiteClock "0:00:27"]
[BlackClock "0:00:19"]

1. e4 {[%clk 0:03:00]}  c5 {[%clk 0:02:41]} 2. Nf3 {[%clk 0:03:00]}  e6 {[%clk 0:02:41]} 3. d4 {[%clk 0:03:00]}  cxd4 {[%clk 0:02:41]} 4. Nxd4 {[%clk 0:03:01]}  Nc6 {[%clk 0:02:41]} 5. Nc3 {[%clk 0:03:02]}  Qc7 {[%clk 0:02:41]} 6. g3 {[%clk 0:03:01]}  a6 {[%clk 0:02:41]} 7. Bg2 {[%clk 0:03:02]}  Nf6 {[%clk 0:02:41]} 8. O-O {[%clk 0:03:01]}  Nxd4 {[%clk 0:02:41]} 9. Qxd4 {[%clk 0:03:01]}  Bc5 {[%clk 0:02:42]} 10. Bf4 {[%clk 0:03:01]}  d6 {[%clk 0:02:41]} 11. Qd2 {[%clk 0:03:02]}  h6 {[%clk 0:02:41]} 12. Rad1 {[%clk 0:03:03]}  e5 {[%clk 0:02:42]} 13. Be3 {[%clk 0:03:03]}  Bxe3 {[%clk 0:02:42]} 14. fxe3 {[%clk 0:03:03]}  Be6 {[%clk 0:02:43]} 15. Qxd6 {[%clk 0:03:02]}  Rc8 {[%clk 0:02:43]} 16. Qxc7 {[%clk 0:02:48]}  Rxc7 {[%clk 0:02:43]} 17. Rd2 {[%clk 0:02:49]}  Ke7 {[%clk 0:02:33]} 18. Nd5+ {[%clk 0:02:42]}  Bxd5 {[%clk 0:02:32]} 19. exd5 {[%clk 0:02:43]}  Ne8 {[%clk 0:02:26]} 20. b3 {[%clk 0:02:25]}  b5 {[%clk 0:02:25]} 21. a4 {[%clk 0:02:01]}  b4 {[%clk 0:02:23]} 22. Be4 {[%clk 0:01:42]}  Nd6 {[%clk 0:02:08]} 23. Bd3 {[%clk 0:01:42]}  a5 {[%clk 0:02:07]} 24. e4 {[%clk 0:01:41]}  f6 {[%clk 0:02:00]} 25. g4 {[%clk 0:01:39]}  Rc3 {[%clk 0:01:50]} 26. Rg2 {[%clk 0:01:34]}  Nb7 {[%clk 0:01:47]} 27. h4 {[%clk 0:01:22]}  Nc5 {[%clk 0:01:46]} 28. Rf3 {[%clk 0:01:23]}  Rc8 {[%clk 0:01:28]} 29. g5 {[%clk 0:01:17]}  hxg5 {[%clk 0:01:24]} 30. hxg5 {[%clk 0:01:18]}  Nxd3 {[%clk 0:01:23]} 31. gxf6+ {[%clk 0:01:17]}  gxf6 {[%clk 0:01:23]} 32. Rxd3 {[%clk 0:01:03]}  Rxd3 {[%clk 0:00:46]} 33. cxd3 {[%clk 0:01:04]}  Kf7 {[%clk 0:00:43]} 34. d4 {[%clk 0:00:46]}  exd4 {[%clk 0:00:39]} 35. Rd2 {[%clk 0:00:47]}  Rc3 {[%clk 0:00:37]} 36. Rxd4 {[%clk 0:00:47]}  Rxb3 {[%clk 0:00:35]} 37. d6 {[%clk 0:00:47]}  Ke8 {[%clk 0:00:36]} 38. Rd5 {[%clk 0:00:46]}  Kd7 {[%clk 0:00:30]} 39. Rxa5 {[%clk 0:00:41]}  Kxd6 {[%clk 0:00:30]} 40. Rf5 {[%clk 0:00:41]}  Ke6 {[%clk 0:00:29]} 41. Rb5 {[%clk 0:00:40]}  Rb2 {[%clk 0:00:28]} 42. a5 {[%clk 0:00:40]}  b3 {[%clk 0:00:27]} 43. a6 {[%clk 0:00:36]}  Ra2 {[%clk 0:00:27]} 44. Rxb3 {[%clk 0:00:33]}  Rxa6 {[%clk 0:00:27]} 45. Kf2 {[%clk 0:00:33]}  Ra5 {[%clk 0:00:21]} 46. Ke3 {[%clk 0:00:33]}  Ke5 {[%clk 0:00:21]} 47. Rd3 {[%clk 0:00:30]}  f5 {[%clk 0:00:21]} 48. exf5 {[%clk 0:00:27]}  Kxf5 {[%clk 0:00:21]} 49. Kf3 {[%clk 0:00:27]}  Rb5 {[%clk 0:00:19]} 1/2-1/2


[Site "https://www.chess.com"]

[Event "Titled Tuesday Blitz January 03 Late 2023"]
[White "Denishev, Marat"]
[Black "Graif, William"]
[WhiteFideId "24131563"]
[BlackFideId "2609835"]
[WhiteElo "2255"]
[BlackElo "2304"]
[Result "0-1"]
[Round "06"]
[TimeControl "180+2"]
[Date "2023.01.03"]
[WhiteClock "0:00:06"]
[BlackClock "0:00:08"]

1. d4 {[%clk 0:03:00]}  Nf6 {[%clk 0:02:55]} 2. c4 {[%clk 0:03:00]}  e5 {[%clk 0:02:53]} 3. dxe5 {[%clk 0:02:59]}  Ng4 {[%clk 0:02:53]} 4. e3 {[%clk 0:02:55]}  d6 {[%clk 0:02:48]} 5. exd6 {[%clk 0:02:53]}  Bxd6 {[%clk 0:02:49]} 6. h3 {[%clk 0:02:37]}  Qh4 {[%clk 0:02:26]} 7. Qe2 {[%clk 0:02:16]}  Nc6 {[%clk 0:02:15]} 8. Nf3 {[%clk 0:02:14]}  Qh6 {[%clk 0:01:52]} 9. Nc3 {[%clk 0:02:04]}  Be6 {[%clk 0:01:41]} 10. Bd2 {[%clk 0:01:54]}  O-O-O {[%clk 0:01:32]} 11. O-O-O {[%clk 0:01:48]}  Rhe8 {[%clk 0:01:07]} 12. g3 {[%clk 0:01:37]}  Nge5 {[%clk 0:01:02]} 13. Nxe5 {[%clk 0:01:12]}  Nxe5 {[%clk 0:01:01]} 14. e4 {[%clk 0:00:50]}  Qg6 {[%clk 0:00:55]} 15. Qe3 {[%clk 0:00:31]}  b6 {[%clk 0:00:34]} 16. f4 {[%clk 0:00:28]}  Nxc4 {[%clk 0:00:23]} 17. Bxc4 {[%clk 0:00:26]}  Bxc4 {[%clk 0:00:23]} 18. e5 {[%clk 0:00:25]}  Bc5 {[%clk 0:00:22]} 19. Qe4 {[%clk 0:00:20]}  Qxe4 {[%clk 0:00:21]} 20. Nxe4 {[%clk 0:00:21]}  Be7 {[%clk 0:00:17]} 21. Bc3 {[%clk 0:00:12]}  Bd5 {[%clk 0:00:17]} 22. Rhe1 {[%clk 0:00:12]}  Bb7 {[%clk 0:00:16]} 23. Nf2 {[%clk 0:00:10]}  Rxd1+ {[%clk 0:00:15]} 24. Rxd1 {[%clk 0:00:11]}  Bc5 {[%clk 0:00:15]} 25. Nd3 {[%clk 0:00:10]}  Be3+ {[%clk 0:00:15]} 26. Kc2 {[%clk 0:00:10]}  Be4 {[%clk 0:00:15]} 27. Re1 {[%clk 0:00:09]}  Bxd3+ {[%clk 0:00:14]} 28. Kxd3 {[%clk 0:00:09]}  Bc5 {[%clk 0:00:15]} 29. Ke4 {[%clk 0:00:09]}  Bf2 {[%clk 0:00:14]} 30. Re2 {[%clk 0:00:09]}  Bxg3 {[%clk 0:00:15]} 31. Rg2 {[%clk 0:00:10]}  Bh4 {[%clk 0:00:14]} 32. Rxg7 {[%clk 0:00:10]}  Re7 {[%clk 0:00:10]} 33. Rxh7 {[%clk 0:00:09]}  f5+ {[%clk 0:00:10]} 34. Kxf5 {[%clk 0:00:05]}  Rxh7 {[%clk 0:00:11]} 35. Kg6 {[%clk 0:00:06]}  Rd7 {[%clk 0:00:09]} 36. e6 {[%clk 0:00:06]}  Re7 {[%clk 0:00:08]} 37. f5 {[%clk 0:00:07]}  Kd8 {[%clk 0:00:08]} 38. Kh5 {[%clk 0:00:06]}  Bg3 {[%clk 0:00:06]} 39. Bf6 {[%clk 0:00:06]}  Ke8 {[%clk 0:00:06]} 40. Bxe7 {[%clk 0:00:05]}  Kxe7 {[%clk 0:00:07]} 41. Kg6 {[%clk 0:00:05]}  Be5 {[%clk 0:00:08]} 42. b3 {[%clk 0:00:04]}  c5 {[%clk 0:00:07]} 43. h4 {[%clk 0:00:04]}  b5 {[%clk 0:00:08]} 44. h5 {[%clk 0:00:02]}  c4 {[%clk 0:00:08]} 45. f6+ {[%clk 0:00:03]}  Bxf6 {[%clk 0:00:08]} 46. bxc4 {[%clk 0:00:04]}  bxc4 {[%clk 0:00:08]} 47. h6 {[%clk 0:00:05]}  c3 {[%clk 0:00:08]} 48. h7 {[%clk 0:00:06]}  c2 {[%clk 0:00:08]} 0-1


[Site "https://www.chess.com"]